bitfinex-derivatives/quotes_ETHF0:USTF0_20240924
["timestamp","ask_amount","ask_price","bid_price","bid_amount"]
[1727147523942,0.3975,2621.3,2621.0,43.48]
[1727147524131,0.3975,2621.3,2621.1,0.57342224]
[1727147524334,0.3975,2621.3,2621.0,43.48]
[1727147524733,0.3975,2621.3,2621.1,2.07144935]
[1727147524935,0.3975,2621.3,2621.1,1.49803348]
[1727147525334,0.77901,2621.3,2621.1,1.49803348]
[1727147526441,0.3975,2621.3,2621.1,1.49803348]
[1727147527643,0.77901,2621.3,2621.1,0.3624]
[1727147528140,0.77901,2621.3,2621.1,1.86043348]
[1727147528341,0.77901,2621.3,2621.1,0.3624]
[1727147528535,0.77901,2621.3,2621.1,1.86043348]
[1727147530129,0.3975,2621.3,2621.1,1.86043348]
[1727147531243,0.779,2621.3,2621.1,1.86043348]
[1727147531439,0.779,2621.3,2621.0,43.48]
[1727147531440,0.38152,2621.2,2621.0,42.29803348]
[1727147531641,0.77901,2621.3,2621.1,1.31521472]
[1727147531830,0.77901,2621.3,2621.0,42.29803348]
[1727147532031,0.38152,2621.2,2621.1,1.31522668]
[1727147532352,0.77901,2621.3,2621.1,1.31522668]
[1727147532541,0.77901,2621.3,2621.0,1.49803348]
[1727147532745,0.38152,2621.2,2621.1,1.31522331]
[1727147534642,0.77901,2621.3,2621.1,1.31522331]
[1727147534838,0.38153,2621.2,2621.0,1.49803348]
[1727147535034,0.38153,2621.2,2621.1,1.31562687]
[1727147535839,0.38153,2621.2,2621.0,1.49803348]
[1727147536444,0.38153,2621.2,2621.1,1.31588082]
[1727147536648,0.38153,2621.2,2621.0,1.49803348]
[1727147537242,0.38153,2621.2,2621.1,1.31594485]
[1727147537435,0.3975,2621.3,2621.1,1.31594485]
[1727147537436,0.77901,2621.3,2621.1,1.31594485]
[1727147537642,0.77901,2621.3,2621.0,1.49803348]
[1727147537848,0.77901,2621.3,2621.1,1.31598393]
[1727147538044,0.38152,2621.2,2621.0,1.49803348]
[1727147538243,0.3975,2621.3,2621.1,1.31541081]
[1727147538244,0.77902,2621.3,2621.1,1.31541081]
[1727147538442,0.38152,2621.2,2621.1,1.24]
[1727147538643,0.38152,2621.2,2621.1,2.55542464]
[1727147539049,0.77901,2621.3,2621.1,2.93372464]
[1727147539247,0.77901,2621.3,2621.1,1.6183]
[1727147540051,0.38152,2621.2,2621.1,1.6183]
[1727147540445,0.77902,2621.3,2621.1,1.6183]
[1727147540654,0.38152,2621.2,2621.1,1.6183]
[1727147542244,0.77901,2621.3,2621.1,1.6183]
[1727147542450,0.3975,2621.3,2621.1,1.6183]
[1727147542646,0.77901,2621.3,2621.1,1.6183]
[1727147542956,0.38152,2621.2,2621.1,1.6183]
[1727147543755,0.38152,2621.2,2621.0,2.23997531]
[1727147544455,0.77901,2621.3,2621.0,2.23997531]
[1727147544851,3.28026203,2621.3,2621.0,2.23997531]
[1727147545153,0.77901,2621.3,2621.0,2.23997531]
[1727147546448,0.38152,2621.2,2621.0,2.23997531]
[1727147546649,0.3975,2621.3,2621.0,2.23997531]
[1727147546948,0.38152,2621.2,2621.0,2.23997531]
[1727147547148,2.89875203,2621.3,2621.0,2.23997531]
[1727147547351,0.3975,2621.3,2621.1,0.99997531]
[1727147547544,0.3975,2621.3,2621.1,1.37677531]
[1727147547749,0.3975,2621.3,2621.1,0.3768]
[1727147548057,0.3975,2621.3,2621.2,0.99997531]
[1727147548552,0.3975,2621.3,2621.2,2.31482491]
[1727147548753,2.50125203,2621.7,2621.4,0.38149]
[1727147548948,3.2078,2621.8,2621.6,1.24]
[1727147548949,6.08325203,2621.8,2621.6,1.24]
[1727147549253,3.582,2621.8,2621.6,1.24]
[1727147549461,0.3742,2621.8,2621.6,2.23928145]
[1727147549661,0.762,2621.9,2621.7,0.99928145]
[1727147550553,0.3747,2621.9,2621.8,1.24]
[1727147551156,0.3659,2622.2,2621.8,1.24]
[1727147551354,1.14667,2622.2,2622.0,1.24]
[1727147551857,0.7653,2622.2,2622.0,1.24]
[1727147553758,1.14668,2622.2,2622.0,1.24]
[1727147553963,0.7653,2622.2,2622.0,1.24]
[1727147554463,1.14668,2622.2,2622.0,1.24]
[1727147556059,0.7653,2622.2,2622.0,1.24]
[1727147556360,0.38142,2621.9,2621.6,3.2078]
[1727147556662,0.7447,2621.8,2621.6,4.4478]
[1727147556962,1.1199,2621.8,2621.6,4.8086]
[1727147557467,3.61796661,2621.8,2621.5,1.24]
[1727147557761,0.38146,2621.6,2621.5,1.24]
[1727147558455,2.87951661,2621.7,2621.5,1.24]
[1727147558857,0.38145,2621.7,2621.5,1.24]
[1727147559061,2.87951661,2621.7,2621.5,1.24]
[1727147560963,0.38145,2621.7,2621.5,1.24]
[1727147561165,2.87951661,2621.7,2621.5,1.24]
[1727147562266,0.38145,2621.7,2621.5,1.24]
[1727147562562,2.87951661,2621.7,2621.5,1.24]
[1727147563168,0.38145,2621.7,2621.5,1.24]
[1727147564466,0.38145,2621.7,2621.6,1.24]
[1727147568772,1.50134,2621.8,2621.6,1.24]
[1727147570370,1.1199,2621.8,2621.6,1.24]
[1727147571060,1.1199,2621.8,2621.7,0.3968]
[1727147573972,1.1199,2621.8,2621.6,1.24]
[1727147575366,0.38145,2621.7,2621.6,1.24]
[1727147579371,0.3683,2621.8,2621.6,5.0544]
[1727147579575,0.3683,2621.8,2621.6,1.24]
[1727147579979,0.3683,2621.8,2621.6,2.23928145]
[1727147580373,0.3683,2621.8,2621.6,2.62073145]
[1727147581780,3.5727,2622.2,2621.9,0.38142]
[1727147582077,0.3649,2622.2,2622.1,1.24]
[1727147583169,0.3649,2622.2,2622.1,1.62139]
[1727147583365,0.38135,2622.4,2622.1,1.24]
[1727147583578,0.74625,2622.4,2622.2,1.24]
[1727147583778,0.74625,2622.4,2622.3,40.8]
[1727147584283,0.3649,2622.4,2622.3,40.8]
[1727147587481,0.3649,2622.4,2622.2,1.24]
[1727147587978,0.3649,2622.4,2622.2,42.04]
[1727147589273,0.3649,2622.4,2622.2,1.24]
[1727147589878,0.74625,2622.4,2622.2,1.24]
[1727147590379,0.3649,2622.4,2622.0,1.24]
[1727147590683,0.38137,2622.3,2622.0,1.24]
[1727147590976,0.38137,2622.3,2622.0,42.04]
[1727147591881,0.3649,2622.4,2622.0,42.04]
[1727147591882,0.74625,2622.4,2622.0,42.04]
[1727147592275,2.7443867,2622.4,2622.0,42.04]
[1727147592681,0.38136,2622.3,2622.0,42.04]
[1727147593183,2.3794967,2622.3,2622.0,42.04]
[1727147593783,0.38136,2622.3,2622.0,42.04]
[1727147594380,2.3794967,2622.3,2622.0,42.04]
[1727147595180,0.38136,2622.3,2622.0,42.04]
[1727147598174,2.7443867,2622.4,2622.0,42.04]
[1727147598374,2.7443867,2622.4,2622.0,40.8]
[1727147598574,1.9981367,2622.1,2621.7,0.3927]
[1727147598774,1.9981367,2622.1,2621.6,1.6392]
[1727147598775,1.1584,2622.0,2621.6,1.6392]
[1727147598982,1.9981367,2621.9,2621.6,1.6392]
[1727147599588,1.9981367,2621.9,2621.8,1.24]
[1727147600494,1.1584,2622.0,2621.8,1.24]
[1727147603789,2.3794967,2622.3,2621.8,1.62143]
[1727147603976,0.38136,2622.3,2622.2,1.24]
[1727147604284,5.70586661,2622.7,2622.2,1.24]
[1727147604285,3.2078,2622.7,2622.3,0.38135]
[1727147604492,3.2078,2622.7,2622.5,1.24]
[1727147604493,3.5911,2622.7,2622.5,1.24]
[1727147606181,0.3833,2622.7,2622.5,1.24]
[1727147609985,0.3833,2622.7,2622.6,44.0078]
[1727147612588,0.3833,2622.7,2622.6,40.8]
[1727147612989,2.49806661,2623.2,2622.7,3.8128]
[1727147612990,1.39316661,2623.2,2622.7,3.8128]
[1727147613287,3.99632923,2623.7,2622.7,3.8128]
[1727147613288,0.176,2623.7,2623.6,0.38117]
[1727147613593,0.079,2624.7,2623.7,3.8112]
[1727147613892,0.079,2624.7,2623.6,10.44980615]
[1727147613893,0.079,2624.7,2624.6,1.24]
[1727147614283,0.079,2624.7,2624.6,1.62102]
[1727147614580,0.079,2624.7,2624.6,1.24]
[1727147616285,0.079,2624.7,2624.6,2.68]
[1727147616482,0.079,2624.7,2624.6,5.806]
[1727147616678,0.079,2624.7,2624.6,2.68]
[1727147617193,0.079,2624.7,2624.6,5.806]
[1727147617781,0.079,2624.7,2624.6,9.6164]
[1727147618690,0.079,2624.7,2624.6,12.8242]
[1727147619189,0.079,2624.7,2624.6,18.8242]
[1727147619501,0.38094,2625.2,2624.6,18.8242]
[1727147619790,3.2078,2625.7,2625.1,2.68]
[1727147619992,0.38088,2625.6,2625.4,2.68]
[1727147620189,3.58867,2625.7,2625.4,2.68]
[1727147620789,0.38088,2625.6,2625.4,2.68]
[1727147621290,3.58867,2625.7,2625.4,2.68]
[1727147621588,3.2078,2625.7,2625.4,2.68]
[1727147621790,3.58867,2625.7,2625.4,2.68]
[1727147624793,3.2078,2625.7,2625.4,2.68]
[1727147624985,3.2078,2625.7,2625.1,2.68]
[1727147624986,0.38093,2625.3,2625.1,2.68]
[1727147625190,0.3961,2625.2,2625.1,2.68]
[1727147627399,3.2078,2626.6,2625.1,9.2078]
[1727147627588,0.3644,2626.6,2626.3,2.68]
[1727147628292,3.2078,2626.9,2626.4,8.14405327]
[1727147628494,0.3789,2627.0,2626.8,2.68]
[1727147632185,3.5867,2627.0,2626.6,2.68]
[1727147632702,3.96738,2627.0,2626.6,2.68]
[1727147633098,3.5867,2627.0,2626.6,2.68]
[1727147633794,3.5867,2627.0,2626.8,2.68]
[1727147634596,3.96738,2627.0,2626.8,2.68]
[1727147634787,3.5867,2627.0,2626.8,2.68]
[1727147635195,3.96738,2627.0,2626.8,2.68]
[1727147635901,3.5867,2627.0,2626.8,2.68]
[1727147636198,3.96738,2627.0,2626.8,2.68]
[1727147636398,3.5867,2627.0,2626.8,2.68]
[1727147636598,3.96738,2627.0,2626.8,2.68]
[1727147637401,0.38069,2626.9,2626.8,2.68]
[1727147638507,0.38069,2626.9,2626.8,2.0791]
[1727147639003,0.38069,2626.9,2626.8,1.4782]
[1727147639300,0.38076,2626.5,2626.1,0.089]
[1727147639504,0.38076,2626.5,2626.0,2.68]
[1727147639505,0.38077,2626.4,2626.0,2.68]
[1727147640007,3.2078,2626.6,2626.3,2.68]
[1727147640306,3.5628,2627.3,2626.4,6.3298]
[1727147640499,3.5628,2627.3,2627.2,2.68]
[1727147640500,3.2078,2627.3,2627.2,2.68]
[1727147641601,3.2078,2627.8,2627.2,2.68]
[1727147641803,0.3659,2627.7,2627.2,2.68]
[1727147642006,0.3659,2627.7,2627.5,2.68]
[1727147642309,3.2078,2627.8,2627.5,2.68]
[1727147642606,0.3641,2627.7,2627.5,2.68]
[1727147643199,0.74468,2627.7,2627.5,2.68]
[1727147643605,0.3806,2627.6,2627.2,5.798]
[1727147643909,3.2078,2627.5,2627.2,5.798]
[1727147644108,3.5817,2627.5,2627.2,5.798]
[1727147644500,3.5817,2627.5,2627.2,2.68]
[1727147646196,0.38062,2627.4,2627.2,2.68]
[1727147646810,0.38063,2627.3,2627.0,2.68]
[1727147647913,4.36131,2627.5,2627.2,2.68]
[1727147648108,3.2078,2627.5,2627.2,2.68]
[1727147649197,3.2078,2627.5,2626.9,0.3717]
[1727147649418,3.2078,2627.5,2627.1,2.68]
[1727147649604,3.58841,2627.5,2627.1,2.68]
[1727147650110,3.2078,2627.5,2627.1,2.68]
[1727147650407,3.58841,2627.5,2627.1,2.68]
[1727147650802,0.38062,2627.4,2627.1,2.68]
[1727147651008,0.77353,2627.4,2627.1,2.68]
[1727147653509,0.3929,2627.4,2627.1,2.68]
[1727147653814,0.77352,2627.4,2627.1,2.68]
[1727147655210,0.3929,2627.4,2627.1,2.68]
[1727147658005,3.2078,2627.5,2627.3,2.68]
[1727147658210,0.3641,2627.7,2627.3,2.68]
[1727147658406,0.3641,2627.7,2627.6,2.68]
[1727147660515,0.77033,2628.0,2627.6,2.68]
[1727147660814,1.15123,2628.0,2627.6,2.68]
[1727147661018,1.15123,2628.0,2627.8,2.68]
[1727147662409,0.7707,2628.0,2627.8,2.68]
[1727147662605,1.15123,2628.0,2627.8,2.68]
[1727147663219,0.38055,2627.9,2627.8,2.68]
[1727147664322,0.38055,2627.9,2627.6,2.68]
[1727147664615,3.2078,2627.7,2627.4,2.68]
[1727147664815,3.2078,2627.6,2627.2,2.68]
[1727147665021,0.75941,2627.5,2627.2,2.68]
[1727147665215,0.3868,2627.4,2627.2,2.68]
[1727147665416,0.76742,2627.4,2627.2,2.68]
[1727147665720,0.3788,2627.5,2627.2,2.68]
[1727147665922,0.3788,2627.5,2627.4,2.68]
[1727147666819,0.3868,2627.7,2627.4,2.68]
[1727147667215,4.84134,2628.0,2627.4,3.06061]
[1727147667418,0.75933,2628.0,2627.7,2.68]
[1727147667621,0.38055,2627.9,2627.7,2.68]
[1727147668313,0.3788,2628.0,2627.7,2.68]
[1727147668617,0.38055,2627.9,2627.7,2.68]
[1727147668825,0.38058,2627.7,2627.5,2.68]
[1727147669218,0.3949,2627.6,2627.5,2.68]
[1727147669723,0.77549,2627.6,2627.5,2.68]
[1727147670324,4.53797,2628.0,2627.5,6.4856]
[1727147670325,3.2078,2628.0,2627.5,6.4856]
[1727147670525,3.2078,2628.0,2627.8,2.68]
[1727147670724,3.58833,2628.0,2627.8,2.68]
[1727147671229,3.58834,2628.0,2627.8,2.68]
[1727147672421,3.2078,2628.0,2627.8,2.68]
[1727147673919,3.58834,2628.0,2627.8,2.68]
[1727147674218,3.2078,2628.0,2627.8,2.68]
[1727147674420,3.58834,2628.0,2627.8,2.68]
[1727147674822,5.57947799,2628.0,2627.8,2.68]
[1727147675225,0.38055,2627.9,2627.8,2.68]
[1727147675424,5.19893799,2628.0,2627.8,2.68]
[1727147675617,5.57947799,2628.0,2627.8,2.68]
[1727147676221,3.58834,2628.0,2627.8,2.68]
[1727147676419,0.38055,2627.9,2627.8,2.68]
[1727147676620,0.38055,2627.9,2627.5,2.68]
[1727147676918,0.3997,2627.8,2627.5,2.68]
[1727147677828,5.19893799,2628.0,2627.7,2.68]
[1727147678028,3.2078,2628.0,2627.7,2.68]
[1727147678233,5.19893799,2628.0,2627.7,2.68]
[1727147679122,3.2078,2628.0,2627.7,2.68]
[1727147679323,5.57947799,2628.0,2627.7,2.68]
[1727147679628,5.19893799,2628.0,2627.7,2.68]
[1727147680621,5.57946799,2628.0,2627.7,2.68]
[1727147680933,5.19893799,2628.0,2627.7,2.68]
[1727147681330,5.19893799,2628.0,2627.7,3.44737]
[1727147681331,1.99113799,2628.0,2627.7,3.44737]
[1727147681529,1.99113799,2628.1,2627.7,3.44737]
[1727147681729,1.99113799,2628.1,2627.7,3.0668]
[1727147681932,2.45171907,2628.5,2628.0,3.06053]
[1727147682231,2.83151907,2628.8,2628.2,2.68]
[1727147682432,2.83151907,2628.8,2628.7,2.68]
[1727147682433,2.45171907,2628.8,2628.7,2.68]
[1727147682629,6.20379648,2629.1,2628.5,2.68]
[1727147682630,2.83151907,2628.9,2628.5,2.68]
[1727147682828,2.45171907,2628.6,2628.5,2.68]
[1727147683122,2.45171907,2628.7,2628.5,2.68]
[1727147683932,2.83217907,2628.6,2628.3,2.68]
[1727147684127,3.21465907,2628.7,2628.3,2.68]
[1727147684327,0.38045,2628.6,2628.5,2.68]
[1727147684630,0.38047,2628.5,2628.3,2.68]
[1727147684834,0.38047,2628.4,2628.3,2.68]
[1727147685030,2.88181281,2628.5,2628.3,2.68]
[1727147685332,3.26227281,2628.5,2628.3,2.68]
[1727147686226,3.57979648,2629.5,2628.4,3.2078]
[1727147686426,0.06215143,2629.4,2628.7,3.2078]
[1727147686626,5.92148747,2630.1,2628.4,9.86479597]
[1727147686627,3.87556923,2630.0,2629.3,3.9078]
[1727147686933,3.87556923,2630.0,2628.8,3.01719707]
[1727147686934,0.3803,2629.6,2628.9,5.9768]
[1727147687238,3.2078,2629.7,2628.9,5.8878]
[1727147687239,0.7481,2629.5,2628.9,5.8878]
[1727147687427,0.7481,2629.5,2629.2,5.8878]
[1727147688131,0.7481,2629.5,2628.7,4.52944961]
[1727147688132,4.5513,2629.5,2628.9,5.8878]
[1727147688318,0.7481,2629.5,2629.0,40.8]
[1727147688717,0.38035,2629.3,2629.0,40.8]
[1727147688918,0.3959,2629.2,2629.0,40.8]
[1727147689133,0.3959,2629.2,2628.9,5.8878]
[1727147690134,0.38038,2629.1,2628.9,3.2078]
[1727147690434,0.3959,2629.2,2628.6,5.8878]
[1727147690633,0.38037,2629.1,2628.6,2.68]
[1727147691024,0.3752,2629.0,2628.6,5.8878]
[1727147691336,0.3624,2628.9,2628.6,5.8878]
[1727147692032,0.3624,2628.9,2628.4,43.48]
[1727147692227,0.38044,2628.7,2628.3,3.2078]
[1727147692423,0.75595,2628.6,2628.3,3.2078]
[1727147692935,0.75906,2628.5,2628.3,3.2078]
[1727147693434,0.38047,2628.4,2628.0,3.2078]
[1727147693834,0.38048,2628.4,2628.1,2.68]
[1727147694023,0.3786,2628.5,2628.1,2.68]
[1727147694225,0.38047,2628.4,2628.1,2.68]
[1727147694530,0.75906,2628.5,2628.0,44.0078]
[1727147694725,0.38048,2628.4,2628.0,44.0078]
[1727147694922,0.38049,2628.3,2628.0,3.2078]
[1727147695121,0.3627,2628.3,2628.0,3.2078]
[1727147695527,0.3786,2628.5,2628.0,3.2078]
[1727147695834,0.3786,2628.5,2628.3,3.2078]
[1727147696032,0.3786,2628.5,2628.4,3.2078]
[1727147696532,3.2078,2629.4,2628.4,7.0126]
[1727147696735,0.3622,2629.0,2628.4,3.5792]
[1727147698829,0.3622,2629.0,2628.7,3.2078]
[1727147699843,0.74259,2629.0,2628.7,3.2078]
[1727147700032,0.3979,2628.9,2628.7,3.2078]
[1727147701232,0.3622,2629.0,2628.7,3.2078]
[1727147706129,0.3622,2629.0,2628.7,3.58823]
[1727147706329,0.3622,2629.0,2628.7,3.2078]
[1727147707443,0.74259,2629.0,2628.7,3.2078]
[1727147707740,0.38042,2628.8,2628.4,3.2078]
[1727147707932,3.2078,2628.5,2627.8,0.089]
[1727147708128,1.33308,2628.7,2627.7,7.25987]
[1727147708129,0.38049,2628.3,2627.7,7.25987]
[1727147708335,0.3747,2628.4,2627.8,40.8]
[1727147708534,0.3747,2628.4,2628.1,3.2078]
[1727147710133,0.38045,2628.6,2628.1,3.2078]
[1727147710443,0.3747,2628.6,2628.2,0.3805]
[1727147710941,0.3747,2628.6,2628.1,3.58831]
[1727147711130,0.3747,2628.6,2628.1,3.2078]
[1727147711337,0.75514,2628.6,2628.1,3.2078]
[1727147711543,0.3747,2628.6,2628.1,3.2078]
[1727147711733,0.75515,2628.6,2628.1,3.2078]
[1727147711935,0.38046,2628.5,2628.1,3.2078]
[1727147712538,0.38048,2628.4,2628.1,3.2078]
[1727147712736,0.38047,2628.5,2628.1,3.2078]
[1727147714232,0.38047,2628.4,2628.1,3.2078]
[1727147714439,0.38047,2628.5,2628.1,5.8778]
[1727147714843,0.38049,2628.4,2628.1,5.8778]
[1727147715645,0.3747,2628.6,2628.1,5.8778]
[1727147715947,0.3747,2628.6,2628.1,3.2078]
[1727147716151,0.3805,2628.3,2628.1,3.2078]
[1727147716449,0.3717,2628.2,2628.1,3.2078]
[1727147719349,0.7522,2628.2,2628.1,3.2078]
[1727147720249,0.76244,2628.7,2628.1,9.6826]
[1727147720453,0.382,2628.7,2628.4,2.67]
[1727147722457,0.3677,2628.8,2628.4,2.67]
[1727147722660,0.74238,2629.1,2628.6,2.67]
[1727147723162,0.3836,2629.0,2628.7,3.2078]
[1727147723560,0.3836,2629.0,2628.6,2.67]
[1727147723859,0.3836,2629.0,2628.6,5.8778]
[1727147724254,0.3836,2629.0,2628.6,2.67]
[1727147724447,0.76399,2629.0,2628.6,5.8778]
[1727147725150,0.76399,2629.0,2628.6,2.67]
[1727147725660,0.3836,2629.0,2628.4,2.67]
[1727147725853,3.2078,2628.9,2628.3,0.3674]
[1727147726058,0.38042,2628.8,2628.3,0.3674]
[1727147726363,0.75182,2628.8,2628.3,3.5752]
[1727147726564,0.38043,2628.7,2628.3,3.5752]
[1727147726756,0.3714,2628.8,2628.3,3.2078]
[1727147726958,0.38047,2628.5,2628.3,3.2078]
[1727147727451,0.38047,2628.4,2628.0,4.19914956]
[1727147727652,0.38047,2628.4,2628.0,3.2078]
[1727147727852,0.77547,2628.5,2628.0,3.2078]
[1727147728460,0.38048,2628.4,2628.0,3.2078]
[1727147729461,0.77547,2628.5,2628.0,3.2078]
[1727147730254,0.395,2628.5,2628.0,3.2078]
[1727147730459,0.3805,2628.3,2628.0,3.2078]
[1727147731057,0.38052,2628.1,2628.0,3.2078]
[1727147731558,0.3817,2628.2,2628.0,3.2078]
[1727147731763,0.3653,2628.1,2628.0,3.2078]
[1727147732259,0.74582,2628.1,2628.0,3.2078]
[1727147732860,0.3653,2628.1,2628.0,3.2078]
[1727147734266,0.74582,2628.1,2628.0,3.2078]
[1727147736564,4.55062,2628.1,2628.0,3.2078]
[1727147737365,0.74582,2628.1,2628.0,3.2078]
[1727147737664,0.3653,2628.1,2628.0,3.2078]
[1727147741768,0.395,2628.5,2628.0,5.8778]
[1727147741971,0.38048,2628.4,2628.1,0.3714]
[1727147742364,0.38047,2628.4,2628.1,0.3714]
[1727147742765,0.7673,2628.5,2628.0,3.2078]
[1727147742968,0.38051,2628.2,2628.0,3.2078]
[1727147743171,0.7429,2628.1,2627.7,6.255]
[1727147744376,0.364,2628.0,2627.7,6.255]
[1727147744576,0.38055,2627.9,2627.7,3.585]
[1727147744772,0.364,2628.0,2627.4,1.36854956]
[1727147745071,0.364,2628.0,2627.4,4.41915956]
[1727147745072,0.74454,2628.0,2627.4,4.41915956]
[1727147745271,0.74454,2628.0,2627.5,40.8]
[1727147745677,0.74454,2628.0,2627.4,3.42781]
[1727147746172,0.38055,2627.9,2627.4,43.8472]
[1727147746761,0.38055,2627.9,2627.4,44.22782]
[1727147746973,0.364,2628.0,2627.6,3.2078]
[1727147746974,0.74454,2628.0,2627.6,3.2078]
[1727147747166,0.38055,2627.9,2627.6,3.2078]
[1727147747572,0.38057,2627.8,2627.6,3.2078]
[1727147747772,0.38057,2627.8,2627.4,43.8472]
[1727147747979,0.38056,2627.9,2627.4,43.8472]
[1727147748162,0.95128,2628.2,2627.6,3.05058]
[1727147748163,0.38051,2628.2,2627.6,3.05058]
[1727147748361,0.38051,2628.2,2627.8,3.2078]
[1727147748362,0.7458,2628.2,2627.8,3.2078]
[1727147748773,0.3653,2628.2,2627.8,3.2078]
[1727147748967,0.74581,2628.2,2627.8,3.2078]
[1727147749969,0.74581,2628.2,2627.9,0.3776]
[1727147751168,0.38052,2628.1,2627.6,2.67]
[1727147751475,0.75574,2628.0,2627.6,3.0476]
[1727147751967,0.38055,2627.9,2627.6,3.0476]
[1727147752168,0.77855,2627.9,2627.6,3.0476]
[1727147752361,0.398,2627.9,2627.6,3.0476]
[1727147753678,0.77856,2627.9,2627.6,3.0476]
[1727147756076,0.38057,2627.8,2627.4,4.19914956]
[1727147756372,0.3843,2627.7,2627.4,3.2078]
[1727147756579,0.76488,2627.7,2627.4,3.2078]
[1727147756974,0.3731,2627.6,2627.4,3.2078]
[1727147758079,0.7537,2627.6,2627.4,3.2078]
[1727147758680,0.3731,2627.6,2627.4,3.2078]
[1727147758874,0.7537,2627.6,2627.3,2.67]
[1727147759678,0.75369,2627.6,2627.3,2.67]
[1727147760083,0.3731,2627.6,2627.3,2.67]
[1727147760485,0.75369,2627.6,2627.3,2.67]
[1727147760778,0.75369,2627.6,2627.2,41.1605]
[1727147761680,0.38061,2627.5,2627.2,41.1605]
[1727147762184,0.38062,2627.4,2627.2,41.1605]
[1727147762373,0.38061,2627.5,2627.2,41.1605]
[1727147762575,0.38062,2627.4,2627.2,41.1605]
[1727147762889,0.38061,2627.5,2627.2,41.1605]
[1727147763182,0.3731,2627.6,2627.2,41.1605]
[1727147763378,0.3806,2627.5,2627.2,41.1605]
[1727147763579,0.7537,2627.6,2627.2,41.1605]
[1727147763770,0.38061,2627.5,2627.2,41.1605]
[1727147765984,0.38062,2627.4,2627.2,41.1605]
[1727147766180,3.2078,2627.9,2627.3,6.4764]
[1727147766375,0.766,2628.8,2627.9,0.95135]
[1727147766583,0.12,2629.7,2628.7,7.35886492]
[1727147766884,0.12,2629.7,2629.5,3.2078]
[1727147768281,0.12,2629.7,2629.0,5.8778]
[1727147768282,3.9232,2629.7,2629.0,5.8778]
[1727147768489,0.12,2629.7,2629.3,3.2078]
[1727147768682,0.12,2629.7,2629.0,5.8778]
[1727147769377,0.12,2629.7,2629.3,3.2078]
[1727147772291,0.38031,2629.6,2629.3,3.2078]
[1727147773991,0.12,2629.7,2629.3,3.2078]
[1727147774194,0.38033,2629.4,2629.3,3.2078]
[1727147774693,0.38033,2629.4,2628.9,3.2078]
[1727147774694,0.38035,2629.3,2628.9,3.2078]
[1727147776187,0.38036,2629.2,2628.9,3.2078]
[1727147776587,0.3641,2629.4,2628.9,3.2078]
[1727147777091,0.38039,2629.0,2628.9,3.2078]
[1727147777291,4.1673,2629.4,2628.9,3.2078]
[1727147777490,0.38038,2629.1,2628.9,3.2078]
[1727147777994,3.804,2629.1,2628.9,3.2078]
[1727147778298,4.18437,2629.1,2628.9,3.2078]
[1727147778895,0.38039,2629.0,2628.9,3.2078]
[1727147779196,0.3804,2628.9,2628.5,46.6778]
[1727147779598,3.2078,2629.2,2628.5,44.0078]
[1727147779599,0.38039,2629.0,2628.5,44.0078]
[1727147781186,0.38038,2629.1,2628.5,44.0078]
[1727147781386,0.38039,2629.0,2628.5,44.0078]
[1727147781590,0.38039,2629.1,2628.5,44.0078]
[1727147781789,0.38039,2629.0,2628.5,44.0078]
[1727147781990,0.38043,2628.8,2628.2,5.8778]
[1727147782291,0.76693,2628.7,2628.2,3.2078]
[1727147782592,0.38046,2628.5,2628.3,40.8]
[1727147782798,3.8048,2628.5,2628.2,3.2078]
[1727147783000,0.74975,2628.6,2628.2,3.2078]
[1727147783587,0.38046,2628.5,2628.2,3.2078]
[1727147783798,0.74975,2628.6,2628.2,3.2078]
[1727147785194,0.3693,2628.6,2628.2,3.2078]
[1727147785497,0.38047,2628.5,2628.2,3.2078]
[1727147787398,0.38046,2628.5,2628.2,3.2078]
[1727147787798,3.0393,2628.6,2628.2,3.2078]
[1727147787799,0.38048,2628.4,2628.2,3.2078]
[1727147788102,0.38047,2628.5,2628.2,3.2078]
[1727147788299,3.0393,2628.6,2628.2,3.2078]
[1727147788603,0.38047,2628.4,2628.2,3.2078]
[1727147789194,0.38049,2628.3,2628.2,3.2078]
[1727147789701,0.38048,2628.4,2628.2,3.2078]
[1727147790296,3.41976,2628.6,2628.2,3.2078]
[1727147790497,3.0393,2628.6,2628.2,3.2078]
[1727147790704,0.38046,2628.5,2628.2,3.2078]
[1727147791503,0.38048,2628.4,2628.2,3.2078]
[1727147794408,0.38047,2628.5,2628.2,3.2078]
[1727147795612,0.3693,2628.6,2628.2,3.2078]
[1727147795812,0.38047,2628.5,2628.2,3.2078]
[1727147796001,0.3865,2628.7,2628.4,2.67]
[1727147796204,0.3865,2628.7,2628.6,3.2078]
[1727147797209,0.3912,2629.1,2628.6,3.2078]
[1727147797413,0.7573,2629.0,2628.6,3.2078]
[1727147798412,0.3769,2629.0,2628.6,3.2078]
[1727147798812,0.3769,2629.0,2628.9,3.2078]
[1727147801517,3.697,2629.3,2628.9,3.2078]
[1727147801819,0.385,2629.3,2628.9,3.2078]
[1727147802914,0.75953,2629.4,2628.9,3.2078]